bitfinex/quotes_SOLUSD_20241222
["timestamp","ask_amount","ask_price","bid_price","bid_amount"]
[1734849281606,20.0,182.85,182.74,29.46865785]
[1734849282487,23.776884,182.84,182.72,30.28919408]
[1734849282689,23.776884,182.84,182.73,29.46865785]
[1734849283396,23.776884,182.84,182.74,30.28928053]
[1734849284310,23.776884,182.84,182.74,0.82062268]
[1734849286307,23.776884,182.84,182.73,29.46865785]
[1734849286607,23.776884,182.8,182.68,29.46865785]
[1734849286811,23.776884,182.78,182.68,29.46865785]
[1734849287515,9.1633,182.79,182.7,29.46865785]
[1734849287700,2.7646,182.79,182.72,29.46865785]
[1734849287902,2.7646,182.79,182.74,29.46865785]
[1734849288196,2.7646,182.83,182.74,29.46865785]
[1734849288799,2.7646,182.83,182.73,30.28930198]
[1734849291518,2.7646,182.83,182.76,29.46865785]
[1734849291694,2.7646,182.83,182.77,0.82048686]
[1734849291894,2.7646,182.83,182.77,30.28914471]
[1734849292097,2.7646,182.87,182.79,29.46865785]
[1734849292598,2.7646,182.87,182.79,30.28900301]
[1734849293714,2.7646,182.87,182.8,29.46865785]
[1734849295317,2.7646,182.87,182.78,29.46865785]
[1734849295515,2.7646,182.87,182.76,29.46865785]
[1734849296004,23.776884,182.86,182.76,18.11870426]
[1734849297193,23.776884,182.86,182.75,18.11870426]
[1734849297395,20.0,182.83,182.73,18.11870426]
[1734849297595,20.0,182.83,182.72,18.11870426]
[1734849298516,20.0,182.83,182.73,18.93937442]
[1734849298701,20.0,182.83,182.74,18.11870426]
[1734849299417,20.0,182.83,182.72,18.11870426]
[1734849299619,20.0,182.83,182.73,18.93940539]
[1734849301114,20.0,182.83,182.73,18.11870426]
[1734849302911,20.0,182.79,182.7,18.11870426]
[1734849303304,2.8397,182.78,182.7,18.11870426]
[1734849303544,2.8397,182.78,182.68,0.82063626]
[1734849303705,23.776884,182.77,182.66,0.82091976]
[1734849303918,23.776884,182.77,182.67,18.11870426]
[1734849306206,23.776884,182.77,182.66,18.11870426]
[1734849310134,20.0,182.74,182.65,18.93973515]
[1734849310314,23.776884,182.73,182.64,18.11870426]
[1734849311319,23.776884,182.73,182.63,18.11870426]
[1734849311523,20.0,182.7,182.63,18.11870426]
[1734849311923,22.637,182.7,182.63,18.11870426]
[1734849313536,22.637,182.7,182.62,0.8210214]
[1734849313537,22.637,182.7,182.62,18.93972566]
[1734849314033,22.637,182.7,182.63,18.11870426]
[1734849314545,22.637,182.7,182.61,18.11870426]
[1734849314744,22.637,182.7,182.62,18.11870426]
[1734849315239,22.637,182.7,182.61,18.11870426]
[1734849315836,1.3677,182.78,182.66,18.11870426]
[1734849316135,2.637,182.77,182.67,0.82095497]
[1734849316439,2.637,182.77,182.66,0.8209482]
[1734849317037,2.637,182.77,182.66,18.93965246]
[1734849317240,43.776884,182.76,182.66,18.93965246]
[1734849318140,43.776884,182.76,182.66,0.8209482]
[1734849318641,20.0,182.76,182.67,18.11870426]
[1734849322143,20.0,182.76,182.66,18.93963328]
[1734849325345,20.0,182.76,182.66,0.82092902]
[1734849325544,20.0,182.72,182.61,0.82105773]
[1734849325844,20.0,182.72,182.62,18.11870426]
[1734849326647,8.7436,182.71,182.62,18.11870426]
[1734849327533,8.7436,182.71,182.61,18.93976199]
[1734849328821,8.7436,182.71,182.63,18.11870426]
[1734849329025,2.5839,182.71,182.65,18.11870426]
[1734849331050,2.5839,182.71,182.66,18.11870426]
[1734849331355,2.5839,182.71,182.66,0.82101296]
[1734849333454,2.5839,182.71,182.66,18.93971722]
[1734849334327,2.5839,182.71,182.66,0.82101296]
[1734849335560,2.5839,182.71,182.63,18.93967486]
[1734849335941,2.5839,182.71,182.65,18.11870426]
[1734849336146,2.5839,182.71,182.66,0.82097659]
[1734849340356,2.5839,182.71,182.64,11.33728158]
[1734849341159,2.5839,182.71,182.62,13.6891]
[1734849341160,2.5839,182.71,182.65,12.15830937]
[1734849341661,8.9251,182.75,182.66,11.33728158]
[1734849341863,2.6569,182.75,182.67,12.15821073]
[1734849342035,2.6569,182.75,182.69,11.33728158]
[1734849342935,2.6569,182.75,182.69,12.15807583]
[1734849343961,2.6569,182.75,182.68,11.33728158]
[1734849344147,2.6569,182.75,182.69,12.15808004]
[1734849345740,2.6569,182.75,182.69,0.82079846]
[1734849346459,7.3996,182.8,182.57,22.00885278]
[1734849346460,22.6569,182.69,182.57,22.00885278]
[1734849346663,22.6569,182.69,182.57,8.31565278]
[1734849346861,24.01840501,182.69,182.57,8.31565278]
[1734849347060,4.01840501,182.69,182.58,11.46277158]
[1734849347360,2.6569,182.69,182.58,11.46277158]
[1734849347559,2.6569,182.69,182.58,11.33728158]
[1734849348064,2.6569,182.69,182.58,18.15270565]
[1734849348465,2.6569,182.69,182.59,0.12549]
[1734849348840,2.6569,182.69,182.59,23.902374]
[1734849349572,1.368,182.74,182.59,23.902374]
[1734849349741,2.6569,182.79,182.72,18.15270565]
[1734849349937,2.6569,182.79,182.73,18.97338545]
[1734849350143,2.6569,182.79,182.74,18.15270565]
[1734849350452,2.6569,182.79,182.72,18.15270565]
[1734849350652,2.6569,182.79,182.71,18.15270565]
[1734849351265,2.6569,182.79,182.7,0.82070045]
[1734849351266,2.6569,182.79,182.72,18.15270565]
[1734849351464,2.6569,182.79,182.72,18.97341733]
[1734849352472,2.6569,182.79,182.71,18.15270565]
[1734849352765,6.032,182.82,182.76,18.15270565]
[1734849352947,2.6569,182.83,182.77,18.15270565]
[1734849353156,6.032,182.86,182.78,18.97317568]
[1734849353354,2.6569,182.88,182.8,18.15270565]
[1734849353561,6.032,182.91,182.82,18.15270565]
[1734849353769,2.6569,182.92,182.84,18.15270565]
[1734849354855,2.6569,182.92,182.84,18.97279109]
[1734849355064,2.6569,182.92,182.86,18.15270565]
[1734849355267,2.6569,182.92,182.87,18.15270565]
[1734849355974,6.032,182.95,182.84,0.82008544]
[1734849356167,6.032,182.95,182.9,18.15270565]
[1734849356472,6.032,182.95,182.89,18.15270565]
[1734849356656,6.032,182.95,182.88,18.15270565]
[1734849357051,6.032,182.95,182.86,0.81996248]
[1734849357052,6.032,182.95,182.87,18.15270565]
[1734849357874,0.7180702,182.97,182.9,18.15270565]
[1734849358059,0.7180702,182.97,182.91,18.15270565]
[1734849358259,0.7180702,182.97,182.88,18.97274284]
[1734849358463,0.7180702,182.97,182.87,18.15270565]
[1734849358659,0.7180702,182.97,182.86,0.82001402]
[1734849358660,0.7180702,182.97,182.88,18.15270565]
[1734849359368,0.7180702,182.97,182.86,18.97271967]
[1734849359572,20.0,182.93,182.85,18.15270565]
[1734849362159,2.7728,182.92,182.83,18.15270565]
[1734849362457,6.3694,182.91,182.82,18.15270565]
[1734849362998,6.3694,182.91,182.83,18.15270565]
[1734849363891,7.7355,183.05,183.03,49.33]
[1734849364053,43.12109739,183.15,183.13,8.911]
[1734849364252,11.76983059,183.18,183.16,20.0]
[1734849364482,107.39257105,183.23,183.21,23.776884]
[1734849364659,54.15395079,183.23,183.18,0.81840976]
[1734849364977,54.15395079,183.23,183.06,30.6]
[1734849364978,54.15395079,183.23,183.15,23.776884]
[1734849365172,54.15395079,183.23,183.11,18.15270565]
[1734849365356,54.15395079,183.23,183.1,0.81865343]
[1734849365357,20.0,183.31,183.2,23.902374]
[1734849365561,0.06623679,183.35,183.22,23.902374]
[1734849365772,0.06623679,183.35,183.21,6.20988618]
[1734849365966,4.5459501,183.5,183.23,3.60098605]
[1734849366170,34.96874019,183.51,183.23,27.70251143]
[1734849366370,34.96874019,183.51,183.22,10.80295815]
[1734849366371,31.50068459,183.44,183.24,10.80295815]
[1734849366977,9.123,183.43,183.42,59.8572801]
[1734849367280,18.04272799,183.44,183.25,10.80295815]
[1734849367484,18.04272799,183.44,183.19,104.91099384]
[1734849368183,1.3629,183.43,183.2,61.21676285]
[1734849368359,23.776884,183.42,183.2,61.21676285]
[1734849368562,20.0,183.39,183.2,61.21676285]
[1734849368757,20.0,183.35,183.2,61.21676285]
[1734849369173,20.2104,183.43,183.2,61.21676285]
[1734849369174,23.776884,183.3,183.2,61.21676285]
[1734849369483,7.553768,183.3,183.2,61.21676285]
[1734849369690,20.2104,183.43,183.2,61.21676285]
[1734849370011,20.2104,183.43,183.22,27.87176643]
[1734849370186,2.7947,183.42,183.21,43.69423099]
[1734849370393,0.4792,183.42,183.36,4.87002624]
[1734849370563,0.4792,183.42,183.21,43.69423099]
[1734849370764,60.12962478,183.46,183.21,43.69423099]
[1734849371067,0.18053347,183.42,183.23,27.70251143]
[1734849371382,0.18053347,183.42,183.22,0.24009102]
[1734849371383,0.18053347,183.42,183.25,27.01625841]
[1734849371578,23.776884,183.41,183.26,27.55736225]
[1734849371882,20.0,183.34,183.27,0.24002551]
[1734849372085,20.0,183.34,183.22,27.87176643]
[1734849372272,20.0,183.34,183.23,0.24007791]
[1734849372466,20.0,183.34,183.24,27.24404448]
[1734849372681,23.776884,183.33,183.26,27.31732364]
[1734849372980,20.0,183.3,183.27,48.24208816]
[1734849373175,20.0,183.3,183.27,44.7735741]
[1734849373578,20.0,183.3,183.29,8.03757467]
[1734849373755,20.0,183.3,183.27,44.7735741]
[1734849374173,20.0,183.3,183.26,27.6034752]
[1734849374571,20.0,183.3,183.24,27.09263487]
[1734849375568,20.0,183.3,183.21,27.94849346]
[1734849376796,20.0,183.3,183.23,27.88840563]
[1734849377089,20.0,183.3,183.25,27.90349785]
[1734849377275,20.0,183.3,183.26,27.86458281]
[1734849377474,20.0,183.3,183.2,32.15029869]
[1734849377864,20.0,183.3,183.11,29.8384941]
[1734849378368,20.0,183.3,183.13,29.3139137]
[1734849378569,20.0,183.3,183.12,53.90969812]
[1734849378979,20.0,183.3,183.12,24.59578442]
[1734849379468,20.0,183.3,183.12,23.776884]
[1734849381791,41.852375,183.3,183.12,23.776884]
[1734849386294,20.0,183.26,183.12,23.776884]
[1734849387098,20.0,183.26,183.14,23.776884]
[1734849387394,20.0,183.26,183.16,23.776884]
[1734849388191,20.0,183.26,183.12,0.81875174]
[1734849388393,20.0,183.26,183.11,27.53357997]
[1734849390097,20.0,183.26,183.12,23.776884]
[1734849390604,22.66094466,183.26,183.12,23.776884]
[1734849392915,22.66094466,183.26,183.12,24.59584445]
[1734849393208,20.0,183.26,183.12,42.65203406]
[1734849393801,20.0,183.26,183.12,24.59584445]
[1734849395513,20.0,183.26,183.12,42.65203406]
[1734849396809,20.0,183.26,183.12,24.59584445]
[1734849397106,20.0,183.25,183.12,24.59584445]
[1734849398908,20.0,183.25,183.12,42.65203406]
[1734849399119,3.4935,183.28,183.15,41.83307361]
[1734849399406,3.4935,183.28,183.15,23.776884]
[1734849400713,20.0,183.26,183.15,23.776884]
[1734849401807,20.0,183.26,183.17,23.776884]
[1734849402209,20.0,183.26,183.15,23.776884]
[1734849402396,0.18053347,183.25,183.15,23.776884]
[1734849402914,0.18053347,183.25,183.17,23.776884]
[1734849403325,0.18053347,183.25,183.17,30.335584]
[1734849403613,3.4935,183.35,183.19,23.776884]
[1734849403907,5.73426576,183.34,183.19,23.776884]
[1734849404690,5.73426576,183.34,183.19,41.83307361]
[1734849404892,5.73426576,183.34,183.19,23.776884]
[1734849405094,5.73426576,183.34,183.21,23.776884]
[1734849405701,5.73426576,183.34,183.23,23.776884]
[1734849405902,20.0,183.31,183.23,23.776884]
[1734849408086,20.0,183.31,183.24,2.81071943]
[1734849408511,20.0,183.31,183.23,23.776884]
[1734849409488,5.73426576,183.34,183.23,23.776884]
[1734849409712,5.73426576,183.34,183.24,23.776884]
[1734849409895,5.73426576,183.34,183.24,26.59995517]
[1734849410599,5.73426576,183.34,183.24,23.776884]
[1734849411214,20.0,183.31,183.24,23.776884]
[1734849411605,5.73426576,183.34,183.26,23.776884]
[1734849414310,20.0,183.31,183.19,21.62007965]
[1734849414510,20.0,183.31,183.2,23.776884]
[1734849414718,20.0,183.31,183.22,23.776884]
[1734849415015,20.0,183.31,183.21,0.81847364]
[1734849416337,20.0,183.31,183.22,23.776884]
[1734849416689,20.0,183.31,183.21,23.776884]
[1734849417022,20.0,183.31,183.16,18.87473212]
[1734849417199,20.0,183.31,183.16,0.81854251]
[1734849418189,3.8798,183.32,183.16,0.81854251]
[1734849418395,23.8798,183.32,183.18,23.776884]
[1734849419417,0.18053347,183.31,183.18,23.776884]
[1734849421618,0.18053347,183.31,183.23,18.05618961]
[1734849421830,0.18053347,183.31,183.24,23.776884]
[1734849422320,0.18053347,183.31,183.21,0.81847649]
[1734849422621,0.18053347,183.31,183.22,23.776884]
[1734849423924,0.18053347,183.31,183.23,0.81853807]
[1734849424300,0.18053347,183.31,183.24,23.776884]
[1734849425113,0.18053347,183.31,183.23,23.776884]
[1734849427225,0.18053347,183.31,183.22,23.776884]
[1734849427925,0.18053347,183.31,183.24,23.776884]
[1734849429314,0.18053347,183.31,183.23,23.776884]
[1734849430018,0.18053347,183.31,183.25,23.776884]
[1734849431130,0.18053347,183.31,183.24,23.776884]
[1734849432820,0.18053347,183.31,183.23,23.776884]
[1734849434135,0.18053347,183.31,183.25,23.776884]
[1734849434431,5.73426576,183.34,183.25,23.776884]
[1734849435016,5.73426576,183.34,183.27,23.776884]
[1734849435334,5.73426576,183.34,183.25,4.7718]
[1734849435713,5.73426576,183.34,183.26,23.776884]
[1734849437010,20.0,183.31,183.22,18.05618961]
[1734849437230,20.0,183.31,183.24,23.776884]
[1734849442127,20.0,183.31,183.2,5.53726009]
[1734849443140,20.0,183.31,183.18,18.05618961]
[1734849443141,23.7238,183.31,183.18,0.81854264]
[1734849444126,23.7238,183.31,183.17,6.5587]
[1734849444330,23.7238,183.31,183.16,5.53762863]
[1734849444331,3.8798,183.3,183.16,5.53762863]
[1734849445846,3.8798,183.3,183.17,23.776884]
[1734849446447,3.8798,183.3,183.18,0.81870054]
[1734849446620,3.8798,183.3,183.19,23.776884]
[1734849449558,20.0,183.26,183.19,23.776884]
[1734849450750,5.73426576,183.29,183.24,18.05618961]
[1734849450928,5.73426576,183.29,183.27,41.83307361]
[1734849451126,5.73426576,183.29,183.28,24.59501644]
[1734849451444,5.73426576,183.29,183.28,42.65120605]
[1734849452045,5.73426576,183.29,183.28,24.59501644]
[1734849452663,5.73426576,183.29,183.28,42.65120605]
[1734849454034,5.73426576,183.29,183.28,24.59501644]
[1734849455363,5.73426576,183.29,183.28,42.65120605]
[1734849456559,5.73426576,183.29,183.28,24.59501644]
[1734849457043,5.73426576,183.29,183.28,42.65120605]
[1734849462360,5.73426576,183.29,183.28,24.59501644]
[1734849464561,20.0,183.39,183.29,23.776884]
[1734849464864,20.0,183.39,183.31,23.776884]
[1734849465767,0.18053347,183.38,183.31,23.776884]
[1734849467367,0.18053347,183.38,183.33,23.776884]
[1734849472552,0.18053347,183.38,183.26,4.7189]
[1734849472553,0.18053347,183.38,183.28,0.8181213]
[1734849472860,0.18053347,183.38,183.29,23.776884]
[1734849473553,0.18053347,183.38,183.28,23.776884]
[1734849475779,0.18053347,183.38,183.25,0.81830393]
[1734849476674,0.18053347,183.38,183.23,12.07665767]
[1734849477480,0.18053347,183.38,183.24,23.776884]
[1734849477850,0.18053347,183.38,183.25,0.818334]
[1734849478054,0.18053347,183.38,183.26,23.776884]
[1734849480178,23.7238,183.42,183.26,23.776884]
[1734849480381,20.0,183.38,183.26,23.776884]
[1734849482176,20.0,183.34,183.25,0.81833149]
[1734849482366,20.0,183.34,183.16,0.81832939]
[1734849482562,3.856,183.32,183.16,0.81832939]
[1734849482777,20.0,183.3,183.16,0.81832939]
[1734849484783,20.0,183.3,183.17,23.776884]
[1734849486981,23.7188,183.29,183.12,8.54278445]
[1734849488298,23.7188,183.29,183.13,23.776884]
[1734849489464,20.0,183.26,183.13,23.776884]
[1734849489665,8.55009597,183.36,183.12,0.5097994]
[1734849489666,20.0,183.22,183.12,0.5097994]
[1734849493073,23.7069,183.21,183.12,0.5097994]
[1734849495991,3.7069,183.21,183.12,0.5097994]
[1734849496199,3.856,183.24,183.12,0.5097994]
[1734849496499,0.18053347,183.2,183.12,0.5097994]
[1734849496891,0.18053347,183.2,183.12,1.32871951]
[1734849497083,0.18053347,183.2,183.13,23.776884]
[1734849499095,0.18053347,183.2,183.12,0.5097994]
[1734849507004,0.18053347,183.2,183.12,8.0241994]
[1734849507201,0.18053347,183.2,183.13,23.776884]
[1734849508003,0.18053347,183.2,183.12,0.5097994]
[1734849511101,3.7069,183.18,183.12,0.5097994]
[1734849511306,20.0,183.16,183.12,0.5097994]
[1734849511606,20.0,183.13,183.12,0.3503744]
[1734849521924,5.73426576,183.15,183.12,0.3503744]
[1734849523321,20.0,183.13,183.12,0.3503744]
[1734849526587,3.7111,183.22,183.12,0.3503744]
[1734849527670,3.7111,183.22,183.12,0.16984093]
[1734849527828,5.55373229,183.21,183.12,0.16984093]
[1734849529124,20.0,183.18,183.12,0.16984093]
[1734849534329,5.55373229,183.21,183.13,23.776884]
[1734849534546,5.55373229,183.21,183.15,23.776884]
[1734849534928,5.55373229,183.21,183.12,0.16984093]
[1734849535135,5.55373229,183.21,183.12,23.94672493]
[1734849535427,5.55373229,183.21,183.12,0.16984093]
[1734849535738,20.0,183.18,183.12,0.16984093]
[1734849536833,20.0,183.18,183.13,23.776884]
[1734849537136,5.55373229,183.21,183.15,23.776884]
[1734849540248,5.55373229,183.21,183.17,23.776884]
[1734849540649,5.55373229,183.21,183.19,23.776884]
[1734849542250,20.0,183.3,183.19,23.776884]
[1734849543358,0.18053347,183.29,183.19,23.776884]
[1734849546857,0.18053347,183.29,183.18,7.7005]
[1734849554664,0.18053347,183.29,183.19,24.59562057]
[1734849554844,0.18053347,183.29,183.19,35.85397663]
[1734849557339,0.18053347,183.29,183.19,24.59562057]
[1734849557871,0.18053347,183.29,183.18,7.7005]
[1734849558345,5.55373229,183.3,183.18,7.7005]
[1734849558546,20.0,183.27,183.18,7.7005]
[1734849564659,20.0,183.27,183.17,23.776884]
[1734849564856,20.0,183.27,183.16,4.6159]
[1734849569305,9.39743229,183.3,183.17,24.59572132]
[1734849570783,20.0,183.27,183.17,24.59572132]
[1734849573391,20.0,183.29,183.17,24.59572132]
[1734849574491,0.18053347,183.28,183.17,24.59572132]
[1734849576303,0.18053347,183.28,183.16,4.6159]
[1734849578612,0.18053347,183.28,183.17,24.59563092]
[1734849587115,0.18053347,183.28,183.16,4.6159]
[1734849589604,20.0,183.27,183.16,4.6159]
[1734849591118,20.0,183.27,183.14,7.2874]
[1734849593736,20.0,183.27,183.15,35.85406859]
[1734849593900,4.80972209,183.29,183.15,35.85406859]
[1734849594104,5.55373229,183.3,183.17,23.776884]
[1734849594405,5.55373229,183.3,183.17,24.59552703]
[1734849595395,5.55373229,183.3,183.17,35.85388309]
[1734849595596,20.0,183.27,183.17,35.85388309]
[1734849596006,20.0,183.27,183.17,24.59552703]
[1734849598318,5.55373229,183.3,183.18,15.82705606]
[1734849598504,5.55373229,183.3,183.21,23.776884]
[1734849598697,5.55373229,183.3,183.22,0.81843651]
[1734849600216,5.55373229,183.3,183.23,23.776884]
[1734849600407,5.55373229,183.3,183.25,23.776884]
[1734849600609,5.55373229,183.3,183.26,0.81830508]
[1734849600819,5.55373229,183.3,183.25,28.345584]
[1734849601620,5.55373229,183.3,183.26,0.81829787]
[1734849601815,5.55373229,183.3,183.27,30.976584]
[1734849602015,5.55373229,183.3,183.29,23.776884]
[1734849604128,20.0,183.4,183.28,23.776884]
[1734849604722,20.0,183.4,183.3,23.776884]
[1734849605308,0.18053347,183.39,183.3,23.776884]
[1734849605721,0.18053347,183.39,183.29,23.776884]
[1734849606117,0.18053347,183.39,183.28,0.81811113]
[1734849607230,0.18053347,183.39,183.29,23.776884]
[1734849607528,0.18053347,183.39,183.31,39.60394006]
[1734849607830,0.18053347,183.39,183.33,23.776884]
[1734849608029,0.18053347,183.39,183.35,7.1997]
[1734849612025,0.18053347,183.39,183.36,24.5947262]
[1734849616240,0.18053347,183.39,183.35,7.1997]
[1734849618139,0.18053347,183.39,183.31,13.0399631]
[1734849619146,0.18053347,183.39,183.31,12.222]
[1734849620345,20.0,183.41,183.31,12.222]
[1734849625320,20.0,183.41,183.29,0.81806336]
[1734849625525,3.8452,183.4,183.27,12.3614]
[1734849625732,3.7066,183.39,183.27,12.3614]
[1734849625939,20.0,183.37,183.27,12.3614]
[1734849627929,20.0,183.37,183.28,23.776884]
[1734849628135,20.0,183.37,183.28,24.59516414]
[1734849628859,20.0,183.37,183.28,0.81828014]
[1734849629755,20.0,183.37,183.27,12.3614]
[1734849636579,0.18053347,183.36,183.27,12.3614]
[1734849638080,0.18053347,183.36,183.28,0.81827877]
[1734849638643,0.18053347,183.36,183.27,13.17961778]
[1734849639982,0.18053347,183.36,183.26,0.81823531]
[1734849640152,0.18053347,183.36,183.25,0.81823531]
[1734849641276,0.18053347,183.36,183.25,23.776884]
[1734849641879,0.18053347,183.36,183.26,0.81828492]
[1734849648008,0.18053347,183.36,183.23,12.71738723]
[1734849648183,0.18053347,183.36,183.24,23.776884]
[1734849649673,3.8366,183.34,183.21,0.81835876]
[1734849649873,20.0,183.32,183.21,0.81835876]
[1734849650691,20.0,183.32,183.19,0.818456]
[1734849651307,20.0,183.32,183.21,11.25835606]
[1734849651469,20.0,183.32,183.23,23.776884]
[1734849651683,5.55373229,183.31,183.24,0.81831526]
[1734849655503,5.55373229,183.31,183.23,23.776884]
[1734849656202,5.55373229,183.31,183.22,0.81837616]
[1734849656382,5.55373229,183.31,183.2,0.81846606]
[1734849657818,5.55373229,183.31,183.19,0.81853386]
[1734849658315,20.0,183.28,183.19,0.81853386]
[1734849658617,3.6949,183.27,183.18,0.81859414]
[1734849659113,20.0,183.24,183.16,0.81866102]
[1734849659322,20.0,183.24,183.15,0.81874159]
[1734849660684,20.0,183.24,183.14,0.81874951]
[1734849660909,20.0,183.24,183.12,0.98863901]
[1734849662407,20.0,183.24,183.13,23.776884]
[1734849662706,20.0,183.24,183.12,0.16984093]
[1734849662891,23.6949,183.23,183.12,0.16984093]
[1734849663908,20.0,183.2,183.12,0.16984093]
[1734849664117,23.6949,183.19,183.12,0.16984093]
[1734849667645,0.18053347,183.18,183.12,0.16984093]
[1734849675330,20.18053347,183.18,183.12,0.16984093]
[1734849680012,20.0,183.14,183.01,7.3986]
[1734849680327,3.6431,183.12,183.0,4.7123]
[1734849680827,20.0,183.09,183.0,4.7123]
[1734849682209,20.0,183.09,182.97,8.45691477]
[1734849682210,5.55373229,183.08,182.97,8.45691477]
[1734849682631,20.0,183.05,182.97,8.45691477]
[1734849683035,20.0,183.05,182.97,7.6374]
[1734849684119,20.0,183.05,182.97,8.4570317]
[1734849684821,20.0,183.05,182.98,23.776884]
[1734849685737,20.0,183.05,182.95,4.6988]
[1734849686336,23.6431,183.05,182.94,1.52876321]
[1734849687234,23.6431,183.05,182.95,23.776884]
[1734849691138,23.6431,183.05,182.94,0.709089]
[1734849692823,5.55373229,183.08,183.02,23.776884]
[1734849693025,5.55373229,183.08,183.04,23.776884]
[1734849693338,5.55373229,183.08,183.01,0.81922338]
[1734849693539,5.55373229,183.08,183.02,23.776884]
[1734849696050,20.0,183.05,183.02,23.776884]
[1734849696242,20.0,183.05,183.01,23.776884]
[1734849697241,20.0,183.12,183.01,23.776884]
[1734849698428,0.18053347,183.11,183.01,23.776884]
[1734849698943,0.18053347,183.11,182.98,4.6988]
[1734849699149,20.0,183.08,182.98,4.6988]
[1734849699353,20.0,183.08,182.97,0.81946644]
[1734849699534,20.0,183.08,182.96,0.81956264]
[1734849700143,20.0,183.04,182.95,7.2841]
[1734849700376,20.0,183.04,182.94,6.39340674]
[1734849701126,20.0,183.04,182.94,5.573789]
[1734849701751,20.0,183.04,182.95,23.776884]
[1734849713573,20.0,183.0,182.95,23.776884]
[1734849722471,5.55373229,183.03,182.96,0.81965428]
[1734849722676,5.55373229,183.03,182.97,23.776884]
[1734849722902,5.55373229,183.03,182.98,0.81946696]
[1734849723079,5.55373229,183.03,182.97,24.59635096]
[1734849724081,5.55373229,183.03,182.96,23.776884]
[1734849724254,20.0,183.0,182.96,23.776884]
[1734849724454,20.0,183.0,182.95,0.81958073]
[1734849725883,20.0,183.0,182.94,5.573789]
[1734849726076,20.0,183.0,182.95,23.776884]
[1734849728474,3.6464,183.07,182.95,23.776884]
[1734849729076,3.7403,183.06,182.95,23.776884]
[1734849729272,20.0,183.04,182.95,23.776884]
[1734849734387,3.92083347,183.06,182.94,0.709089]
[1734849734388,23.6265,183.03,182.94,0.709089]
[1734849734680,20.0,183.02,182.94,0.709089]
[1734849735890,20.0,182.99,182.94,0.709089]
[1734849736775,3.7403,182.98,182.94,0.709089]
[1734849738191,20.0,182.95,182.85,12.94039541]
[1734849738365,20.0,182.95,182.85,0.81999541]
[1734849738569,20.0,182.95,182.82,0.82011955]
[1734849740696,20.0,182.95,182.83,23.776884]
[1734849740991,20.0,182.95,182.85,23.776884]
[1734849741504,20.0,182.95,182.87,23.776884]
[1734849741800,20.0,182.95,182.88,0.81999286]
[1734849741978,3.6265,183.01,182.89,23.776884]
[1734849742179,3.6265,183.01,182.91,23.776884]
[1734849742685,3.6265,183.01,182.92,0.8198344]
[1734849743190,3.6265,183.01,182.91,24.59672595]
[1734849744091,3.6265,183.01,182.91,23.776884]
[1734849744395,5.55373229,183.0,182.9,23.776884]
[1734849744600,20.0,182.97,182.92,23.776884]
[1734849745483,20.0,182.97,182.94,23.776884]
[1734849749777,20.0,182.97,182.91,0.81976914]
[1734849749982,20.0,182.97,182.89,0.81982863]
[1734849751198,20.0,182.97,182.9,23.776884]
[1734849751376,20.0,182.97,182.92,23.776884]
[1734849755303,20.0,182.97,182.9,23.776884]
[1734849757284,20.0,182.97,182.85,0.81997149]
[1734849757490,20.0,182.97,182.86,23.776884]
[1734849757687,20.0,182.97,182.87,0.82004239]
[1734849757885,20.0,182.97,182.85,0.82007884]
[1734849758091,20.0,182.93,182.85,0.82007884]
[1734849759305,20.0,182.93,182.86,23.776884]
[1734849760385,0.18053347,182.92,182.86,23.776884]
[1734849763807,0.18053347,182.92,182.87,0.82007997]
[1734849764416,0.18053347,182.92,182.86,23.776884]
[1734849766518,0.18053347,182.92,182.87,0.82008472]
[1734849768127,0.18053347,182.92,182.86,23.776884]
[1734849768735,0.18053347,182.92,182.87,0.82007955]
[1734849769698,0.18053347,182.92,182.86,23.776884]
[1734849775322,20.0,182.93,182.86,23.776884]
[1734849775625,20.0,182.89,182.86,23.776884]
[1734849777937,5.55373229,182.92,182.88,23.776884]